fUST/lending_fUST_20240621
["ID","MTS","AMOUNT","RATE_DAILY","PERIOD"]
[330043623,1718961038949,-500.0,0.00032099,2]
[330043624,1718961038960,-360.0118659,0.00032099,2]
[330043625,1718961038970,-148452.07421876,0.000321,30]
[330043626,1718961038979,-2942.32317983,0.00032303,2]
[330043627,1718961038988,-311.9814733,0.00032723,2]
[330043628,1718961038998,-165.919197,0.00033491,2]
[330043629,1718961039007,-137293.52129879,0.0003481,60]
[330043630,1718961039020,-20363.18636134,0.0003481,60]
[330043631,1718961039034,-50955.7,0.0003481,60]
[330043679,1718961043281,-6358.4,0.0003481,60]
[330043684,1718961043294,-522000.00008,0.0003481,60]
[330043686,1718961043310,-82769.7459184,0.0003481,60]
[330043714,1718961043766,-1099.9983195,0.0003481,60]
[330043715,1718961043924,-7328.23138512,0.0003481,60]
[330043716,1718961043936,-6390.6,0.0003481,60]
[330043717,1718961043960,-899.83215684,0.0003481,60]
[330043738,1718961046365,-2764.37454281,0.0003481,60]
[330043741,1718961046676,-637.0,0.0003481,60]
[330043742,1718961047969,-142092.68148103,0.0003481,60]
[330043743,1718961048080,-635.91,0.0003481,60]
[330043750,1718961933105,-160.680682,0.00021096,2]
[330043751,1718961933128,-162.37087782,0.000239,2]
[330043752,1718962040131,-410.52094737,0.00023612,2]
[330043753,1718962139232,-430.17386053,0.00023612,2]
[330043754,1718962139262,-82.90134729,0.0002368,2]
[330043755,1718962139301,-167.09865271,0.0002368,2]
[330043756,1718962139330,-106.48556616,0.0002386,2]
[330043757,1718962139365,-513.07520782,0.0002386,2]
[330043758,1718962145223,-166.647942,0.0002386,2]
[330043759,1718962152096,-166.647942,0.00023719,2]
[330043760,1718962154210,-182.0852222,0.00023719,2]
[330043761,1718962154232,-4177.35461062,0.0002386,2]
[330043762,1718962154252,-154.76012181,0.00023899,2]
[330043763,1718962154273,-300.0,0.00023899,2]
[330043764,1718962154293,-300.0,0.00023899,2]
[330043765,1718962154313,-5471.69459822,0.000239,2]
[330043766,1718962154332,-181.0,0.00024,14]
[330043767,1718962154352,-166.666666,0.00024637,2]
[330043768,1718962154372,-380.0,0.00024658,2]
[330043769,1718962154393,-1006.6591151,0.00024759,2]
[330043770,1718962154412,-167.313675,0.00024768,2]
[330043771,1718962154433,-2971.6450481,0.00024933,2]
[330043772,1718962154455,-250.0,0.00024944,2]
[330043773,1718962154478,-1057.21207763,0.00024948,2]
[330043774,1718962154499,-1674.65070371,0.00024948,2]
[330043775,1718962154519,-1000.0,0.00025,9]
[330043776,1718962154539,-163.22,0.00025037,3]
[330043777,1718962154560,-821.48,0.00025039,3]
[330043778,1718962154581,-500.0,0.00025047,2]
[330043779,1718962154600,-500.0,0.00025047,2]
[330043780,1718962154620,-500.0,0.00025047,2]
[330043781,1718962154642,-500.0,0.00025047,2]
[330043782,1718962154662,-500.0,0.00025047,2]
[330043783,1718962154683,-379.19450501,0.00025047,2]
[330043784,1718962154703,-500.0,0.00025047,2]
[330043785,1718962154730,-443.7357154,0.00025047,2]
[330043786,1718962154751,-500.0,0.00025047,2]
[330043787,1718962154773,-500.0,0.00025047,2]
[330043788,1718962154794,-500.0,0.00025047,2]
[330043789,1718962154814,-360.55068902,0.00025047,2]
[330043790,1718962154836,-500.0,0.00025047,2]
[330043791,1718962154975,-500.0,0.00025047,2]
[330043792,1718962154997,-500.0,0.00025047,2]
[330043793,1718962155018,-500.0,0.00025047,2]
[330043794,1718962155043,-500.0,0.00025047,2]
[330043795,1718962155064,-389.1565941,0.00025047,2]
[330043796,1718962155085,-500.0,0.00025047,2]
[330043797,1718962155106,-500.0,0.00025047,2]
[330043798,1718962155127,-261.11196626,0.00025047,2]
[330043799,1718962155147,-500.0,0.00025047,2]
[330043800,1718962155167,-500.0,0.00025047,2]
[330043801,1718962155193,-500.0,0.00025047,2]
[330043802,1718962155214,-164.44734869,0.00025047,2]
[330043803,1718962155238,-500.0,0.00025047,2]
[330043804,1718962155260,-500.0,0.00025047,2]
[330043805,1718962155283,-500.0,0.00025047,2]
[330043806,1718962155304,-500.0,0.00025047,2]
[330043807,1718962155325,-500.0,0.00025047,2]
[330043808,1718962155346,-500.0,0.00025047,2]
[330043809,1718962155366,-229.05619683,0.00025047,2]
[330043810,1718962155389,-500.0,0.00025047,2]
[330043811,1718962155410,-500.0,0.00025047,2]
[330043812,1718962155432,-500.0,0.00025047,2]
[330043813,1718962155453,-500.0,0.00025047,2]
[330043814,1718962155476,-500.0,0.00025047,2]
[330043815,1718962155498,-500.0,0.00025047,2]
[330043816,1718962155519,-500.0,0.00025047,2]
[330043817,1718962155541,-500.0,0.00025047,2]
[330043818,1718962155562,-500.0,0.00025047,2]
[330043819,1718962155583,-500.0,0.00025047,2]
[330043820,1718962155603,-500.0,0.00025047,2]
[330043821,1718962155629,-500.0,0.00025047,2]
[330043822,1718962155648,-500.0,0.00025047,2]
[330043823,1718962155670,-500.0,0.00025047,2]
[330043824,1718962155691,-500.0,0.00025047,2]
[330043825,1718962155712,-500.0,0.00025047,2]
[330043826,1718962155736,-500.0,0.00025047,2]
[330043827,1718962155757,-500.0,0.00025047,2]
[330043828,1718962155779,-500.0,0.00025047,2]
[330043829,1718962155799,-500.0,0.00025047,2]
[330043830,1718962155823,-500.0,0.00025047,2]
[330043831,1718962155845,-500.0,0.00025047,2]
[330043832,1718962155867,-500.0,0.00025047,2]
[330043833,1718962155888,-500.0,0.00025047,2]
[330043834,1718962155909,-500.0,0.00025047,2]
[330043835,1718962155932,-500.0,0.00025047,2]
[330043836,1718962155954,-500.0,0.00025047,2]
[330043837,1718962155973,-306.3879615,0.00025047,2]
[330043838,1718962155993,-246.4698829,0.00025047,2]
[330043839,1718962156020,-500.0,0.00025047,2]
[330043840,1718962156040,-500.0,0.00025047,2]
[330043841,1718962156061,-500.0,0.00025047,2]
[330043842,1718962156080,-234.95471182,0.00025047,2]
[330043843,1718962156100,-500.0,0.00025047,2]
[330043844,1718962156120,-260.05606823,0.00025047,2]
[330043845,1718962156142,-231.18149931,0.00025047,2]
[330043846,1718962156166,-500.0,0.00025047,2]
[330043847,1718962156191,-500.0,0.00025047,2]
[330043848,1718962156212,-500.0,0.00025047,2]
[330043849,1718962156234,-500.0,0.00025047,2]
[330043850,1718962156256,-500.0,0.00025047,2]
[330043851,1718962156279,-500.0,0.00025047,2]
[330043852,1718962156299,-500.0,0.00025047,2]
[330043853,1718962156320,-500.0,0.00025047,2]
[330043854,1718962156341,-500.0,0.00025047,2]
[330043855,1718962156363,-500.0,0.00025047,2]
[330043856,1718962156390,-500.0,0.00025047,2]
[330043857,1718962156411,-500.0,0.00025047,2]
[330043858,1718962156434,-500.0,0.00025047,2]
[330043859,1718962156455,-500.0,0.00025047,2]
[330043860,1718962156477,-500.0,0.00025047,2]
[330043861,1718962156499,-500.0,0.00025047,2]
[330043862,1718962156521,-500.0,0.00025047,2]
[330043863,1718962156542,-500.0,0.00025047,2]
[330043864,1718962156563,-500.0,0.00025047,2]
[330043865,1718962156583,-500.0,0.00025047,2]
[330043866,1718962156604,-500.0,0.00025047,2]
[330043867,1718962156627,-500.0,0.00025047,2]
[330043868,1718962156648,-500.0,0.00025047,2]
[330043869,1718962156670,-500.0,0.00025047,2]
[330043870,1718962156691,-500.0,0.00025047,2]
[330043871,1718962156713,-500.0,0.00025047,2]
[330043872,1718962156740,-500.0,0.00025047,2]
[330043873,1718962156763,-500.0,0.00025047,2]
[330043874,1718962156785,-500.0,0.00025047,2]
[330043875,1718962156807,-500.0,0.00025047,2]
[330043876,1718962156911,-500.0,0.00025047,2]
[330043877,1718962156933,-500.0,0.00025047,2]
[330043878,1718962156954,-499.23886962,0.00025047,2]
[330043879,1718962156975,-500.0,0.00025047,2]
[330043880,1718962156995,-500.0,0.00025047,2]
[330043881,1718962157014,-500.0,0.00025047,2]
[330043882,1718962157035,-500.0,0.00025047,2]
[330043883,1718962157055,-500.0,0.00025047,2]
[330043884,1718962157076,-500.0,0.00025047,2]
[330043885,1718962157099,-500.0,0.00025047,2]
[330043886,1718962157119,-500.0,0.00025047,2]
[330043887,1718962157142,-500.0,0.00025047,2]
[330043888,1718962157162,-500.0,0.00025047,2]
[330043889,1718962157182,-538.74251257,0.00025047,2]
[330043890,1718962157202,-500.0,0.00025047,2]
[330043891,1718962157221,-500.0,0.00025047,2]
[330043892,1718962157241,-500.0,0.00025047,2]
[330043893,1718962157261,-500.0,0.00025047,2]
[330043894,1718962157281,-500.0,0.00025047,2]
[330043895,1718962157301,-500.0,0.00025047,2]
[330043896,1718962157321,-200.0,0.00025047,2]
[330043897,1718962157342,-500.0,0.00025047,2]
[330043898,1718962157363,-500.0,0.00025047,2]
[330043899,1718962157385,-500.0,0.00025047,2]
[330043900,1718962157406,-500.0,0.00025047,2]
[330043901,1718962157428,-500.0,0.00025047,2]
[330043902,1718962157449,-500.0,0.00025047,2]
[330043903,1718962157470,-500.0,0.00025047,2]
[330043904,1718962157491,-500.0,0.00025047,2]
[330043905,1718962157512,-500.0,0.00025047,2]
[330043906,1718962157536,-500.0,0.00025047,2]
[330043907,1718962157557,-500.0,0.00025047,2]
[330043908,1718962157579,-500.0,0.00025047,2]
[330043909,1718962157601,-500.0,0.00025047,2]
[330043910,1718962157622,-500.0,0.00025047,2]
[330043911,1718962157646,-500.0,0.00025047,2]
[330043912,1718962157668,-500.0,0.00025047,2]
[330043913,1718962157688,-500.0,0.00025047,2]
[330043914,1718962157709,-500.0,0.00025047,2]
[330043915,1718962157734,-500.0,0.00025047,2]
[330043916,1718962157755,-500.0,0.00025047,2]
[330043917,1718962157778,-500.0,0.00025047,2]
[330043918,1718962157799,-534.59655727,0.00025047,2]
[330043919,1718962157822,-696.32914457,0.00025047,2]
[330043920,1718962157843,-696.32914457,0.00025047,2]
[330043921,1718962157863,-696.32914457,0.00025047,2]
[330043922,1718962157886,-696.32914457,0.00025047,2]
[330043923,1718962157909,-696.32914457,0.00025047,2]
[330043924,1718962157931,-696.32914457,0.00025047,2]
[330043925,1718962157953,-696.32914457,0.00025047,2]
[330043926,1718962157975,-696.32914457,0.00025047,2]
[330043927,1718962157997,-696.32914457,0.00025047,2]
[330043928,1718962158021,-696.32914457,0.00025047,2]
[330043929,1718962158043,-696.32914457,0.00025047,2]
[330043930,1718962158064,-696.32914457,0.00025047,2]
[330043931,1718962158084,-696.32914457,0.00025047,2]
[330043932,1718962158105,-696.32914457,0.00025047,2]
[330043933,1718962158127,-696.32914457,0.00025047,2]
[330043934,1718962158147,-696.32914457,0.00025047,2]
[330043935,1718962158168,-696.32914457,0.00025047,2]
[330043936,1718962158189,-696.32914457,0.00025047,2]
[330043937,1718962158210,-110.37996752,0.00025047,2]
[330043938,1718962158632,-585.94917705,0.00025047,2]
[330043939,1718962158655,-696.32914457,0.00025047,2]
[330043940,1718962158676,-696.32914457,0.00025047,2]
[330043941,1718962158698,-696.32914457,0.00025047,2]
[330043942,1718962158722,-696.32914457,0.00025047,2]
[330043943,1718962158747,-696.32914457,0.00025047,2]
[330043944,1718962158772,-696.32914457,0.00025047,2]
[330043945,1718962158794,-696.32914457,0.00025047,2]
[330043946,1718962158815,-696.32914457,0.00025047,2]
[330043947,1718962158836,-696.32914457,0.00025047,2]
[330043948,1718962158857,-696.32914457,0.00025047,2]
[330043949,1718962158879,-696.32914457,0.00025047,2]
[330043950,1718962158898,-696.32914457,0.00025047,2]
[330043951,1718962158919,-696.32914457,0.00025047,2]
[330043952,1718962158939,-696.32914457,0.00025047,2]
[330043953,1718962158962,-370.95792546,0.00025047,2]
[330043954,1718962164175,-325.37121911,0.00025047,2]
[330043955,1718962164197,-696.32914457,0.00025047,2]
[330043956,1718962164220,-696.32914457,0.00025047,2]
[330043957,1718962164242,-696.32914457,0.00025047,2]
[330043958,1718962164264,-696.32914457,0.00025047,2]
[330043959,1718962164289,-696.32914457,0.00025047,2]
[330043960,1718962164311,-696.32914457,0.00025047,2]
[330043961,1718962164333,-696.32914457,0.00025047,2]
[330043962,1718962164354,-500.0,0.00025047,2]
[330043963,1718962164377,-500.0,0.00025047,2]
[330043964,1718962164399,-500.0,0.00025047,2]
[330043965,1718962164420,-599.99999999,0.00025047,2]
[330043966,1718962164443,-661.51268735,0.00025047,2]
[330043967,1718962164465,-661.51268735,0.00025047,2]
[330043968,1718962164487,-661.51268735,0.00025047,2]
[330043969,1718962164513,-661.51268735,0.00025047,2]
[330043970,1718962164535,-661.51268735,0.00025047,2]
[330043971,1718962164556,-407.89026216,0.00025047,2]
[330043972,1718962171236,-253.62242519,0.00025047,2]
[330043973,1718962171258,-661.51268735,0.00025047,2]
[330043974,1718962171280,-661.51268735,0.00025047,2]
[330043975,1718962171302,-661.51268735,0.00025047,2]
[330043976,1718962171324,-661.51268735,0.00025047,2]
[330043977,1718962171345,-661.51268735,0.00025047,2]
[330043978,1718962171371,-661.51268735,0.00025047,2]
[330043979,1718962171397,-661.51268735,0.00025047,2]
[330043980,1718962171421,-661.51268735,0.00025047,2]
[330043981,1718962171444,-661.51268735,0.00025047,2]
[330043982,1718962171468,-661.51268735,0.00025047,2]
[330043983,1718962171490,-661.51268735,0.00025047,2]
[330043984,1718962171511,-24900.0,0.00025049,2]
[330043985,1718962171532,-1057.2120776,0.00025127,2]
[330043986,1718962171551,-725.1453656,0.00025132,2]
[330043987,1718962171572,-181.1454478,0.00025147,2]
[330043988,1718962171592,-889.206112,0.00025198,2]
[330043989,1718962171612,-1057.2120776,0.00025306,2]
[330043990,1718962171632,-166.666666,0.00025309,2]
[330043991,1718962171658,-1057.2120776,0.00025484,2]
[330043992,1718962171680,-1057.2120776,0.00025663,2]
[330043993,1718962171700,-250.0,0.00025765,2]
[330043994,1718962171722,-390.0,0.0002592,2]
[330043995,1718962171747,-166.666666,0.0002598,2]
[330043996,1718962171769,-204.45772447,0.00026179,2]
[330043997,1718962171788,-420.0,0.00026289,2]
[330043998,1718962171812,-166.666666,0.00026652,2]
[330043999,1718962171832,-166.666666,0.00027324,2]
[330044000,1718962171852,-1038.10520063,0.00027863,2]
[330044001,1718962171872,-160.680682,0.00027913,2]
[330044002,1718962171893,-166.666666,0.00027996,2]
[330044003,1718962171913,-177.83363645,0.00028482,2]
[330044004,1718962171934,-587.0,0.00028918,2]
[330044005,1718962171955,-300.0,0.0003,120]
[330044006,1718962171975,-14932.20668281,0.0003083,4]
[330044007,1718962171997,-3254.09,0.00030998,3]
[330044008,1718962172023,-8218.77483894,0.00031001,4]
[330044029,1718962235096,-165.919197,0.00026903,2]
[330044030,1718962235109,-920.85766257,0.00027294,2]
[330044042,1718962235216,-2079.14233743,0.00027294,2]
[330044044,1718962235225,-1470.41114366,0.0002873,2]
[330044047,1718962235244,-156.008132,0.0002875,2]
[330044049,1718962235255,-559.86027917,0.00030862,2]
[330044051,1718962235265,-500.0,0.00030862,2]
[330044053,1718962235275,-234.57810774,0.00030862,2]
[330044098,1718962239874,-265.42189226,0.00030862,2]
[330044099,1718962239884,-500.0,0.00030862,2]
[330044100,1718962239894,-500.0,0.00030862,2]
[330044101,1718962239907,-500.0,0.00030862,2]
[330044102,1718962239917,-500.0,0.00030862,2]
[330044103,1718962239928,-500.0,0.00030862,2]
[330044104,1718962239939,-613.98301021,0.00030862,2]
[330044105,1718962239950,-500.0,0.00030862,2]
[330044106,1718962239961,-500.0,0.00030862,2]
[330044107,1718962239971,-500.0,0.00030862,2]
[330044108,1718962239981,-500.0,0.00030862,2]
[330044109,1718962239992,-500.0,0.00030862,2]
[330044110,1718962240002,-500.0,0.00030862,2]
[330044111,1718962240012,-47707.73281481,0.00030863,4]
[330044112,1718962240023,-400.0,0.00031,2]
[330044113,1718962240033,-160.0,0.00031586,30]
[330044114,1718962240043,-161.34403368,0.00032328,4]
[330044115,1718962240053,-160.0,0.00032329,2]
[330044116,1718962240064,-320.0,0.00032877,2]
[330044117,1718962240073,-500.0,0.00033,2]
[330044118,1718962240084,-5274.4118793,0.00033345,2]
[330044119,1718962240094,-300.0,0.000334,60]
[330044120,1718962240104,-161.03723764,0.00033424,2]
[330044121,1718962240113,-1470.41114366,0.0003373,2]
[330044123,1718962240124,-300.0,0.00034,120]
[330044124,1718962240134,-500.0,0.00034,2]
[330044125,1718962240143,-1000.0,0.00034,34]
[330044126,1718962240153,-560.0,0.00034101,2]
[330044127,1718962240163,-160.680682,0.0003473,2]
[330044128,1718962240173,-4697.11,0.0003479,3]
[330044129,1718962240186,-500.0,0.00034799,7]
[330044130,1718962240196,-500.0,0.00034799,7]
[330044131,1718962240206,-528.33358988,0.00034799,7]
[330044132,1718962240217,-381.06711176,0.00034799,7]
[330044133,1718962240228,-500.0,0.00034799,7]
[330044134,1718962240238,-299.33420461,0.00034799,7]
[330044135,1718962240249,-500.0,0.00034799,7]
[330044136,1718962240260,-500.0,0.00034799,7]
[330044137,1718962240271,-500.0,0.00034799,7]
[330044138,1718962240282,-500.0,0.00034799,7]
[330044139,1718962240293,-500.0,0.00034799,7]
[330044140,1718962240303,-628.71685905,0.00034799,7]
[330044141,1718962240313,-500.0,0.00034799,7]
[330044142,1718962240324,-500.0,0.00034799,7]
[330044143,1718962240334,-500.0,0.00034799,7]
[330044144,1718962240344,-500.0,0.00034799,7]
[330044145,1718962240355,-500.0,0.00034799,7]
[330044146,1718962240365,-500.0,0.00034799,7]
[330044147,1718962240375,-500.0,0.00034799,7]
[330044148,1718962240385,-500.0,0.00034799,7]
[330044149,1718962240395,-500.0,0.00034799,7]
[330044150,1718962240406,-500.0,0.00034799,7]
[330044151,1718962240416,-500.0,0.00034799,7]
[330044152,1718962240427,-500.0,0.00034799,7]
[330044153,1718962240438,-500.0,0.00034799,7]
[330044154,1718962240449,-500.0,0.00034799,7]
[330044155,1718962240460,-500.0,0.00034799,7]
[330044157,1718962240471,-500.0,0.00034799,7]
[330044159,1718962240481,-500.0,0.00034799,7]
[330044161,1718962240492,-500.0,0.00034799,7]
[330044163,1718962240503,-211.36576765,0.000348,15]
[330044164,1718962240514,-188.81,0.000348,62]
[330044165,1718962240524,-997.0,0.000348,3]
[330044166,1718962240534,-447790.54443964,0.000348,60]
[330044167,1718962240794,-1197.58388706,0.000348,60]
[330044168,1718962240807,-5140.90584341,0.000348,60]
[330044169,1718962240820,-25057.24301671,0.000348,60]
[330044170,1718962240832,-76478.09999999,0.000348,60]
[330044176,1718962241456,-5020.60759034,0.000348,60]
[330044177,1718962241906,-18974.48436578,0.000348,60]
[330044178,1718962242015,-10069.36505979,0.000348,60]
[330044189,1718962244755,-3914.26,0.0003479,3]
[330044192,1718962244765,-9509.19670796,0.000348,60]
[330044210,1718962245050,-114.58525989,0.000348,60]
[330044339,1718963213149,-192.83744381,0.000175,2]
[330044340,1718963239120,-380.79660854,0.000175,2]
[330044341,1718963246155,-63.80375895,0.000175,2]
[330044342,1718963246175,-1977.89410221,0.000176,2]
[330044343,1718963246195,-250.0,0.00018708,2]
[330044344,1718963246216,-300.0,0.00019275,2]
[330044345,1718963246240,-300.0,0.00019275,2]
[330044346,1718963246261,-2807.97736994,0.00019276,2]
[330044347,1718963293345,-300.0,0.00019275,2]
[330044348,1718963293479,-207.04558105,0.00019276,2]
[330044349,1718963293521,-507.04558105,0.00019276,2]
[330044350,1718963353179,-407.9366642,0.00019094,2]
[330044351,1718963353203,-300.0,0.00019275,2]
[330044352,1718963353229,-10222.77847966,0.00019276,2]
[330044353,1718963353273,-2056.5682735,0.0001941,2]
[330044354,1718963353301,-949.3031283,0.00019506,2]
[330044355,1718963353326,-19428.80811702,0.0002,2]
[330044356,1718963353354,-1465.31936572,0.00020181,2]
[330044357,1718963353379,-894.536281,0.0002028,2]
[330044358,1718963353404,-1465.7889598,0.00020339,2]
[330044359,1718963353427,-250.0,0.00020422,2]
[330044360,1718963353454,-500.0,0.00020617,2]
[330044361,1718963353479,-500.0,0.00020617,2]
[330044362,1718963353503,-500.0,0.00020617,2]
[330044363,1718963353528,-500.0,0.00020617,2]
[330044364,1718963353553,-500.0,0.00020617,2]
[330044365,1718963353584,-391.10600901,0.00020617,2]
[330044366,1718963353612,-500.0,0.00020617,2]
[330044367,1718963353639,-500.0,0.00020617,2]
[330044368,1718963353666,-500.0,0.00020617,2]
[330044369,1718963353693,-500.0,0.00020617,2]
[330044370,1718963353719,-500.0,0.00020617,2]
[330044371,1718963353750,-500.0,0.00020617,2]
[330044372,1718963353772,-27008.117137,0.00020618,2]
[330044373,1718963353794,-161.261214,0.00021096,2]
[330044374,1718963353817,-420.0,0.00021203,2]
[330044375,1718963353843,-168.144764,0.00021918,2]
[330044376,1718963353864,-516.30877666,0.00022,2]
[330044377,1718963353886,-168.144764,0.000232,2]
[330044378,1718963353908,-587.0,0.00023323,2]
[330044379,1718963353930,-289.39,0.0002384,3]
[330044380,1718963353953,-868.22,0.0002384,3]
[330044381,1718963353976,-500.0,0.00023847,2]
[330044382,1718963353998,-226.42868138,0.00023847,2]
[330044383,1718963354021,-500.0,0.00023847,2]
[330044384,1718963354043,-342.57180197,0.00023847,2]
[330044385,1718963354067,-500.0,0.00023847,2]
[330044386,1718963354090,-201.44292545,0.00023847,2]
[330044387,1718963354113,-438.61505772,0.00023847,2]
[330044388,1718963354143,-500.0,0.00023847,2]
[330044389,1718963354169,-500.0,0.00023847,2]
[330044390,1718963354193,-500.0,0.00023847,2]
[330044391,1718963354217,-500.0,0.00023847,2]
[330044392,1718963354240,-500.0,0.00023847,2]
[330044393,1718963354263,-500.0,0.00023847,2]
[330044394,1718963354287,-500.0,0.00023847,2]
[330044395,1718963354310,-500.0,0.00023847,2]
[330044396,1718963354333,-500.0,0.00023847,2]
[330044397,1718963354356,-500.0,0.00023847,2]
[330044398,1718963354378,-319.49177744,0.00023847,2]
[330044399,1718963354400,-500.0,0.00023847,2]
[330044400,1718963354421,-22175.10782217,0.0002385,2]
[330044401,1718963355140,-13884.87107,0.0002385,2]
[330044402,1718963355168,-31892.57255227,0.0002385,2]
[330044403,1718963358117,-811.27625705,0.0002385,2]
[330044404,1718963360138,-50930.39358355,0.0002385,2]
[330044405,1718963368259,-167.313675,0.00023693,2]
[330044406,1718963368281,-30391.03731678,0.0002385,2]
[330044407,1718963368302,-168.144764,0.00024482,2]
[330044408,1718963368325,-200.0,0.00024658,2]
[330044409,1718963368348,-28195.01348828,0.00025,2]
[330044410,1718963368369,-35653.45590814,0.0002509,2]
[330044411,1718963368390,-1009.19716923,0.0002512,2]
[330044412,1718963368411,-823.0,0.00025656,2]
[330044413,1718963368432,-639.45985846,0.00026376,2]
[330044414,1718963368453,-654.0,0.00028221,2]
[330044415,1718963368475,-161.261214,0.00028822,2]
[330044416,1718963368496,-894.536281,0.00030421,2]
[330044417,1718963368517,-2316.95,0.0003059,3]
[330044418,1718963368538,-1000.0,0.000306,7]
[330044419,1718963368561,-8650.6797085,0.00030812,4]
[330044420,1718963368583,-928.65264186,0.00031009,4]
[330044421,1718963368606,-1000.0,0.000311,7]
[330044422,1718963368628,-1000.0,0.000316,7]
[330044423,1718963368649,-298.72220794,0.00031724,4]
[330044424,1718963368671,-1109.39572935,0.00032089,4]
[330044425,1718963368692,-490.13704789,0.000327,2]
[330044426,1718963368712,-155.97078353,0.00032999,2]
[330044427,1718963368736,-150.0,0.00033999,2]
[330044428,1718963368758,-1616.72989838,0.00033999,4]
[330044429,1718963368780,-50000.0,0.00034,2]
[330044430,1718963368801,-5274.4118793,0.00034317,2]
[330044431,1718963368822,-6072.83959438,0.00034799,2]
[330044459,1718963440240,-154.56733433,0.00028908,2]
[330044461,1718963440251,-500.0,0.00028908,2]
[330044462,1718963440261,-39421.21650128,0.00028909,2]
[330044463,1718963440271,-578.78,0.0003154,3]
[330044464,1718963440281,-3570.18,0.0003154,3]
[330044465,1718963440291,-2975.15,0.0003154,3]
[330044466,1718963440302,-300.61839662,0.00031549,2]
[330044467,1718963440312,-402.26359616,0.00031549,2]
[330044468,1718963440322,-500.0,0.00031549,2]
[330044469,1718963440332,-500.0,0.00031549,2]
[330044470,1718963440342,-500.0,0.00031549,2]
[330044471,1718963440352,-395.84753324,0.00031549,2]
[330044472,1718963440361,-76174.26735163,0.0003155,7]
[330044473,1718963440371,-53655.65874316,0.0003155,30]
[330044474,1718963440381,-4081.61695023,0.0003155,2]
[330044475,1718963440391,-303.42387061,0.0003155,30]
[330044476,1718963440408,-750.72407127,0.0003155,2]
[330044477,1718963440418,-1283.39101905,0.0003155,2]
[330044478,1718963440428,-6858.48958552,0.0003155,2]
[330044479,1718963440438,-160.0,0.0003155,30]
[330044480,1718963440449,-326.75803192,0.000319,2]
[330044481,1718963440458,-1131.71092886,0.00032099,4]
[330044482,1718963440468,-91804.90933499,0.000348,60]
[330044483,1718963440480,-6899.42521054,0.000348,60]
[330044495,1718963446536,-603.98478864,0.000348,60]
[330044512,1718963446842,-68970.15275463,0.000348,60]
[330044513,1718963446854,-318.41271715,0.000348,60]
[330044518,1718963447409,-20000.12658266,0.000348,60]
[330044520,1718963447421,-600.83215784,0.000348,60]
[330044521,1718963447920,-598.30034209,0.000348,60]
[330044553,1718964546168,-161.841746,0.00021096,2]
[330044554,1718964546282,-163.99666703,0.00023878,2]
[330044555,1718964546302,-1144.29921489,0.00023978,2]
[330044556,1718964546324,-646.21496074,0.00025177,2]
[330044557,1718964546348,-165.919197,0.00025716,2]
[330044558,1718964546368,-250.0,0.00026177,2]
[330044559,1718964546390,-621.31074804,0.00026435,2]
[330044560,1718964546413,-3000.0,0.00026527,2]
[330044561,1718964546433,-304.383731,0.00026664,2]
[330044562,1718964546453,-300.0,0.00026666,2]
[330044563,1718964546472,-200.0,0.00026666,3]
[330044564,1718964546493,-300.0,0.00026666,2]
[330044565,1718964546513,-6383.8241848,0.00026667,2]
[330044566,1718964546532,-250.0,0.00026755,2]
[330044567,1718964546558,-669.5903625,0.00026878,2]
[330044568,1718964546580,-164.548883,0.0002778,2]